[Event "*** Titled Tuesday Blitz"]
[Site "Chess.com"]
[Date "2021.03.30"]
[Round "2"]
[White "Artyom_ChessMate"]
[Black "kuli4ik"]
[Result "0-1"]
[WhiteElo "2551"]
[BlackElo "2852"]
[TimeControl "180+1"]
[EndTime "10:18:17 PDT"]
[Termination "kuli4ik won by resignation"]

1. e4 {[%clk 0:02:59.6]} 1... Nf6 {[%clk 0:02:36.1]} 2. e5 {[%clk 0:02:58.8]}
2... Nd5 {[%clk 0:02:35.7]} 3. d4 {[%clk 0:02:59.7]} 3... d6 {[%clk 0:02:34.1]}
4. Nf3 {[%clk 0:03:00.6]} 4... Nb6 {[%clk 0:02:34.2]} 5. a4 {[%clk 0:03:00.3]}
5... a5 {[%clk 0:02:34.1]} 6. Bb5+ {[%clk 0:03:00.2]} 6... c6 {[%clk 0:02:34.2]}
7. Bd3 {[%clk 0:02:59.6]} 7... Bg4 {[%clk 0:02:33.7]} 8. h3 {[%clk 0:02:53.1]}
8... Bxf3 {[%clk 0:02:33.2]} 9. Qxf3 {[%clk 0:02:52.7]} 9... e6 {[%clk
0:02:33.6]} 10. exd6 {[%clk 0:02:48.5]} 10... Bxd6 {[%clk 0:02:33.3]} 11. O-O
{[%clk 0:02:48.8]} 11... Qf6 {[%clk 0:02:29]} 12. Qxf6 {[%clk 0:02:37.9]} 12...
gxf6 {[%clk 0:02:28.8]} 13. c4 {[%clk 0:02:38.8]} 13... Bc7 {[%clk 0:02:25.6]}
14. Nc3 {[%clk 0:02:37.2]} 14... Na6 {[%clk 0:02:25.7]} 15. Re1 {[%clk
0:02:27.5]} 15... Nb4 {[%clk 0:02:24.9]} 16. Rd1 {[%clk 0:02:19.1]} 16... Nxd3
{[%clk 0:02:21.1]} 17. Rxd3 {[%clk 0:02:20]} 17... Nxc4 {[%clk 0:02:21.5]} 18.
b3 {[%clk 0:02:20.5]} 18... Nb6 {[%clk 0:02:20]} 19. Bh6 {[%clk 0:02:20.8]}
19... Rg8 {[%clk 0:02:19.3]} 20. Ne4 {[%clk 0:02:14]} 20... Rg6 {[%clk
0:02:17.7]} 21. Be3 {[%clk 0:02:13.4]} 21... O-O-O {[%clk 0:02:17.3]} 22. h4
{[%clk 0:02:11.3]} 22... Rdg8 {[%clk 0:02:16]} 23. g3 {[%clk 0:02:09.4]} 23...
Nd5 {[%clk 0:02:14.9]} 24. h5 {[%clk 0:02:04]} 24... Rg4 {[%clk 0:02:13.7]} 25.
f3 {[%clk 0:01:52.6]} 25... f5 {[%clk 0:02:04.9]} 26. Nd6+ {[%clk 0:01:22.3]}
26... Bxd6 {[%clk 0:02:03.5]} 27. fxg4 {[%clk 0:01:23.2]} 27... Rxg4 {[%clk
0:02:03.7]} 28. Bf2 {[%clk 0:01:23.2]} 28... Nf4 {[%clk 0:02:00.7]} 29. Rf3
{[%clk 0:01:18]} 29... Nxh5 {[%clk 0:02:00.7]} 30. Kh2 {[%clk 0:01:12.2]} 30...
Nf6 {[%clk 0:02:00.7]} 31. Be3 {[%clk 0:01:07.8]} 31... Re4 {[%clk 0:01:57.1]}
32. Bf4 {[%clk 0:01:05.2]} 32... Bb4 {[%clk 0:01:55.8]} 33. Rd1 {[%clk
0:01:03.2]} 33... Nd5 {[%clk 0:01:54.3]} 34. Kg2 {[%clk 0:00:58.4]} 34... Bc3
{[%clk 0:01:49.7]} 35. Rfd3 {[%clk 0:00:35.9]} 35... Kd7 {[%clk 0:01:41.9]} 36.
Rh1 {[%clk 0:00:34.4]} 36... Rxf4 {[%clk 0:01:41.5]} 37. Rxc3 {[%clk 0:00:34.5]}
37... Rxd4 {[%clk 0:01:37.4]} 38. Rf3 {[%clk 0:00:32.8]} 38... Rd2+ {[%clk
0:01:34]} 39. Rf2 {[%clk 0:00:33]} 39... Ne3+ {[%clk 0:01:33]} 40. Kf3 {[%clk
0:00:33]} 40... Rxf2+ {[%clk 0:01:31.9]} 41. Kxf2 {[%clk 0:00:33.9]} 41... Ng4+
{[%clk 0:01:32.1]} 42. Kf3 {[%clk 0:00:34.4]} 42... h6 {[%clk 0:01:32.3]} 43.
Rd1+ {[%clk 0:00:32.7]} 43... Kc7 {[%clk 0:01:23.8]} 44. Kf4 {[%clk 0:00:33.6]}
44... b5 {[%clk 0:01:14.1]} 45. Rd2 {[%clk 0:00:33.6]} 45... Nf6 {[%clk
0:00:52.3]} 46. Rh2 {[%clk 0:00:28.6]} 46... h5 {[%clk 0:00:52.2]} 47. Kg5
{[%clk 0:00:25.7]} 47... Ne4+ {[%clk 0:00:52.5]} 48. Kf4 {[%clk 0:00:26.1]}
48... Nc5 {[%clk 0:00:50.5]} 49. axb5 {[%clk 0:00:23.5]} 49... cxb5 {[%clk
0:00:50.8]} 50. Rxh5 {[%clk 0:00:23]} 50... Kd6 {[%clk 0:00:50.9]} 51. Rh7
{[%clk 0:00:23.9]} 51... Ke7 {[%clk 0:00:50.5]} 52. Rh8 {[%clk 0:00:23.1]} 52...
Nxb3 {[%clk 0:00:49.2]} 53. Rb8 {[%clk 0:00:23.6]} 53... Nd4 {[%clk 0:00:44.2]}
54. Ke3 {[%clk 0:00:19.6]} 54... e5 {[%clk 0:00:42.6]} 55. Rb6 {[%clk
0:00:19.8]} 55... a4 {[%clk 0:00:38.6]} 56. Kd3 {[%clk 0:00:20.2]} 56... f6
{[%clk 0:00:38.8]} 57. Ra6 {[%clk 0:00:19.5]} 57... Kf7 {[%clk 0:00:39]} 58. Ke3
{[%clk 0:00:18.4]} 58... Kg6 {[%clk 0:00:39.2]} 59. Ra7 {[%clk 0:00:16.6]} 59...
a3 {[%clk 0:00:38]} 60. Kd3 {[%clk 0:00:14.1]} 60... b4 {[%clk 0:00:38.3]} 61.
Kc4 {[%clk 0:00:13.5]} 61... b3 {[%clk 0:00:26]} 62. Kc3 {[%clk 0:00:10.1]}
62... Nb5+ {[%clk 0:00:21.6]} 0-1

[Event "*** Titled Tuesday Blitz"]
[Site "Chess.com"]
[Date "2021.03.30"]
[Round "2"]
[White "dcremisi"]
[Black "sokidze"]
[Result "0-1"]
[WhiteElo "2527"]
[BlackElo "2792"]
[TimeControl "180+1"]
[EndTime "10:18:18 PDT"]
[Termination "sokidze won by resignation"]

1. Nf3 {[%clk 0:03:00.9]} 1... c5 {[%clk 0:02:59.9]} 2. c4 {[%clk 0:03:00.5]}
2... Nc6 {[%clk 0:02:59.3]} 3. Nc3 {[%clk 0:03:00.7]} 3... e5 {[%clk 0:02:59.4]}
4. e3 {[%clk 0:02:57.3]} 4... Nf6 {[%clk 0:02:59.3]} 5. d4 {[%clk 0:02:55.3]}
5... e4 {[%clk 0:02:59.4]} 6. Nd2 {[%clk 0:02:28.5]} 6... cxd4 {[%clk
0:02:56.7]} 7. exd4 {[%clk 0:02:28.7]} 7... Bb4 {[%clk 0:02:53.4]} 8. d5 {[%clk
0:02:25.1]} 8... Ne5 {[%clk 0:02:34.4]} 9. Qc2 {[%clk 0:02:20.9]} 9... O-O
{[%clk 0:02:28.8]} 10. Be2 {[%clk 0:02:19]} 10... d6 {[%clk 0:02:05.2]} 11. O-O
{[%clk 0:02:18.2]} 11... Bf5 {[%clk 0:02:04.8]} 12. Qb3 {[%clk 0:02:02.2]} 12...
Bxc3 {[%clk 0:01:56.2]} 13. Qxc3 {[%clk 0:02:01]} 13... Qd7 {[%clk 0:01:54.1]}
14. b3 {[%clk 0:01:54.7]} 14... Rac8 {[%clk 0:01:44.4]} 15. Bb2 {[%clk
0:01:54.4]} 15... Nxd5 {[%clk 0:01:30.2]} 16. Qg3 {[%clk 0:01:39]} 16... Nf6
{[%clk 0:01:22.6]} 17. Bxe5 {[%clk 0:01:11]} 17... dxe5 {[%clk 0:01:20.7]} 18.
Rfd1 {[%clk 0:01:11.6]} 18... Qe6 {[%clk 0:01:13.2]} 19. Nf1 {[%clk 0:01:10.5]}
19... Rfd8 {[%clk 0:01:12.8]} 20. Ne3 {[%clk 0:01:08.2]} 20... Bg6 {[%clk
0:01:13]} 21. h3 {[%clk 0:01:03.3]} 21... h6 {[%clk 0:01:06.4]} 22. Kh2 {[%clk
0:00:53.9]} 22... Rd4 {[%clk 0:01:01.8]} 23. Nc2 {[%clk 0:00:52]} 23... Rd7
{[%clk 0:00:58.6]} 24. Rxd7 {[%clk 0:00:51.5]} 24... Nxd7 {[%clk 0:00:58.1]} 25.
Rd1 {[%clk 0:00:49.9]} 25... f5 {[%clk 0:00:48.2]} 26. Qc3 {[%clk 0:00:44.4]}
26... Nf6 {[%clk 0:00:38.6]} 27. Qb4 {[%clk 0:00:41.9]} 27... b6 {[%clk
0:00:36.8]} 28. Rd6 {[%clk 0:00:39.7]} 28... Qf7 {[%clk 0:00:31.7]} 29. Qc3
{[%clk 0:00:36.1]} 29... Qe7 {[%clk 0:00:27.3]} 30. Rd1 {[%clk 0:00:32.8]} 30...
Kh7 {[%clk 0:00:26.1]} 31. Ne3 {[%clk 0:00:26.9]} 31... f4 {[%clk 0:00:25.6]}
32. Nd5 {[%clk 0:00:27.2]} 32... Nxd5 {[%clk 0:00:25.9]} 33. Rxd5 {[%clk
0:00:27.9]} 33... Re8 {[%clk 0:00:20.4]} 34. Bg4 {[%clk 0:00:25.4]} 34... h5
{[%clk 0:00:16.1]} 35. Bd1 {[%clk 0:00:19.6]} 35... Qf6 {[%clk 0:00:11.5]} 36.
Qd2 {[%clk 0:00:19.5]} 36... f3 {[%clk 0:00:10.9]} 37. g3 {[%clk 0:00:19.3]}
37... h4 {[%clk 0:00:07.7]} 38. g4 {[%clk 0:00:18.2]} 38... Bf7 {[%clk
0:00:06.6]} 39. Rd6 {[%clk 0:00:17.7]} 39... Be6 {[%clk 0:00:06.1]} 40. Bc2
{[%clk 0:00:16.9]} 40... Qe7 {[%clk 0:00:04.8]} 41. Bxe4+ {[%clk 0:00:16.6]}
41... Kh8 {[%clk 0:00:05.5]} 42. Rxe6 {[%clk 0:00:14.8]} 42... Qxe6 {[%clk
0:00:05.5]} 43. Qg5 {[%clk 0:00:15.2]} 43... Qh6 {[%clk 0:00:05]} 44. Qf5 {[%clk
0:00:10.6]} 44... Qf4+ {[%clk 0:00:05.3]} 45. Kg1 {[%clk 0:00:10.1]} 45... Qxf5
{[%clk 0:00:04.8]} 46. gxf5 {[%clk 0:00:10.6]} 46... Rd8 {[%clk 0:00:05]} 47.
Bd5 {[%clk 0:00:11.2]} 47... Kh7 {[%clk 0:00:04.5]} 48. Kf1 {[%clk 0:00:11.8]}
48... g6 {[%clk 0:00:05]} 49. f6 {[%clk 0:00:11.8]} 49... g5 {[%clk 0:00:05.3]}
50. f7 {[%clk 0:00:12.1]} 50... Kg7 {[%clk 0:00:05.7]} 51. Ke1 {[%clk
0:00:12.5]} 51... Rxd5 {[%clk 0:00:05.5]} 52. cxd5 {[%clk 0:00:12.8]} 52... Kxf7
{[%clk 0:00:06.2]} 53. Kd2 {[%clk 0:00:13.7]} 53... g4 {[%clk 0:00:05.1]} 54.
Ke3 {[%clk 0:00:12.1]} 54... e4 {[%clk 0:00:05.5]} 55. Kf4 {[%clk 0:00:11.7]}
55... gxh3 {[%clk 0:00:05.3]} 56. Ke5 {[%clk 0:00:12]} 56... h2 {[%clk
0:00:05.8]} 57. Kd6 {[%clk 0:00:12.9]} 57... h1=Q {[%clk 0:00:06.3]} 58. Kc7
{[%clk 0:00:13.8]} 58... Qc1+ {[%clk 0:00:06.4]} 59. Kb7 {[%clk 0:00:13.9]}
59... h3 {[%clk 0:00:07]} 60. d6 {[%clk 0:00:14.3]} 60... Qd2 {[%clk 0:00:07.5]}
61. d7 {[%clk 0:00:15.2]} 61... Qxd7+ {[%clk 0:00:07.2]} 62. Kb8 {[%clk
0:00:16.1]} 62... h2 {[%clk 0:00:07.7]} 0-1

[Event "*** Titled Tuesday Blitz"]
[Site "Chess.com"]
[Date "2021.03.30"]
[Round "2"]
[White "MF1966Idrisov"]
[Black "Vaathi_Coming"]
[Result "1/2-1/2"]
[WhiteElo "2365"]
[BlackElo "2799"]
[TimeControl "180+1"]
[EndTime "10:18:20 PDT"]
[Termination "Game drawn by repetition"]

1. Nf3 {[%clk 0:03:00.9]} 1... Nf6 {[%clk 0:02:59.3]} 2. b3 {[%clk 0:03:00.9]}
2... g6 {[%clk 0:02:59.1]} 3. Bb2 {[%clk 0:03:01]} 3... Bg7 {[%clk 0:02:59.8]}
4. c4 {[%clk 0:03:01.6]} 4... O-O {[%clk 0:03:00]} 5. g3 {[%clk 0:03:02.1]} 5...
d6 {[%clk 0:02:59.8]} 6. d4 {[%clk 0:03:01.1]} 6... c5 {[%clk 0:02:56]} 7. Bg2
{[%clk 0:03:00.8]} 7... Ne4 {[%clk 0:02:52.2]} 8. O-O {[%clk 0:02:59.5]} 8...
Nc6 {[%clk 0:02:52.3]} 9. e3 {[%clk 0:02:58.9]} 9... Bg4 {[%clk 0:02:50.7]} 10.
h3 {[%clk 0:02:58.4]} 10... Bxf3 {[%clk 0:02:50.2]} 11. Bxf3 {[%clk 0:02:58.3]}
11... f5 {[%clk 0:02:49.6]} 12. Nd2 {[%clk 0:02:39.6]} 12... cxd4 {[%clk
0:02:40.3]} 13. Nxe4 {[%clk 0:02:36.2]} 13... fxe4 {[%clk 0:02:41.2]} 14. Bxe4
{[%clk 0:02:33.7]} 14... dxe3 {[%clk 0:02:41.4]} 15. Bd5+ {[%clk 0:02:31]} 15...
Kh8 {[%clk 0:02:41]} 16. Bxg7+ {[%clk 0:02:28.5]} 16... Kxg7 {[%clk 0:02:41.9]}
17. fxe3 {[%clk 0:02:26.1]} 17... Qb6 {[%clk 0:02:37.9]} 18. Qd2 {[%clk
0:02:14.2]} 18... Ne5 {[%clk 0:02:37.6]} 19. Kg2 {[%clk 0:02:05.6]} 19... a5
{[%clk 0:02:32.4]} 20. Rxf8 {[%clk 0:02:00.1]} 20... Rxf8 {[%clk 0:02:31.7]} 21.
Rf1 {[%clk 0:01:55.9]} 21... Rxf1 {[%clk 0:02:29]} 22. Kxf1 {[%clk 0:01:55.7]}
22... Qc7 {[%clk 0:02:26.1]} 23. Qd4 {[%clk 0:01:50]} 23... b6 {[%clk
0:02:25.4]} 24. Kg2 {[%clk 0:01:47.4]} 24... Qd8 {[%clk 0:02:04.4]} 25. Qf4
{[%clk 0:01:42.5]} 25... Qd7 {[%clk 0:01:59]} 26. g4 {[%clk 0:01:39.9]} 26... h6
{[%clk 0:01:44.5]} 27. Kg3 {[%clk 0:01:36.7]} 27... b5 {[%clk 0:01:39.7]} 28. c5
{[%clk 0:01:24.8]} 28... Qc7 {[%clk 0:01:26.7]} 29. c6 {[%clk 0:01:22.8]} 29...
e6 {[%clk 0:01:20.5]} 30. Bxe6 {[%clk 0:01:06]} 30... Qxc6 {[%clk 0:01:19.8]}
31. h4 {[%clk 0:00:56]} 31... Qe8 {[%clk 0:00:49.7]} 32. Bd5 {[%clk 0:00:52.9]}
32... Nd3 {[%clk 0:00:41.3]} 33. Qd4+ {[%clk 0:00:49.7]} 33... Qe5+ {[%clk
0:00:41.1]} 34. Qxe5+ {[%clk 0:00:50]} 34... Nxe5 {[%clk 0:00:37.7]} 35. g5
{[%clk 0:00:42.9]} 35... hxg5 {[%clk 0:00:35]} 36. hxg5 {[%clk 0:00:42.9]} 36...
b4 {[%clk 0:00:35.3]} 37. Be4 {[%clk 0:00:38.3]} 37... Kf7 {[%clk 0:00:29.2]}
38. Kf4 {[%clk 0:00:37.5]} 38... Nd7 {[%clk 0:00:23.1]} 39. Bc2 {[%clk
0:00:35.7]} 39... Nc5 {[%clk 0:00:21.2]} 40. Kf3 {[%clk 0:00:32.9]} 40... Ne6
{[%clk 0:00:19.2]} 41. Kg4 {[%clk 0:00:32.3]} 41... Nc7 {[%clk 0:00:16.6]} 42.
Bd3 {[%clk 0:00:27.6]} 42... Kg7 {[%clk 0:00:13.7]} 43. Bc4 {[%clk 0:00:26.2]}
43... d5 {[%clk 0:00:09.2]} 44. Bd3 {[%clk 0:00:26.4]} 44... Ne6 {[%clk
0:00:09.4]} 45. Bc2 {[%clk 0:00:24.8]} 45... Kf7 {[%clk 0:00:09.1]} 46. Bb1
{[%clk 0:00:24.2]} 46... Nc5 {[%clk 0:00:05.2]} 47. Bc2 {[%clk 0:00:24.1]} 47...
Ne6 {[%clk 0:00:03.5]} 48. Bb1 {[%clk 0:00:23.3]} 48... Kg7 {[%clk 0:00:03.3]}
49. Bc2 {[%clk 0:00:23.3]} 49... d4 {[%clk 0:00:02]} 50. exd4 {[%clk 0:00:18]}
50... Nxd4 {[%clk 0:00:02.9]} 51. Bb1 {[%clk 0:00:16.6]} 51... Ne6 {[%clk
0:00:02.3]} 52. Bd3 {[%clk 0:00:13.2]} 52... Kf7 {[%clk 0:00:01.8]} 53. Bc2
{[%clk 0:00:11.7]} 53... Kg7 {[%clk 0:00:02]} 54. Bd3 {[%clk 0:00:11.7]} 54...
Nd4 {[%clk 0:00:02.5]} 55. Kf4 {[%clk 0:00:10]} 55... Ne6+ {[%clk 0:00:02.9]}
56. Kg4 {[%clk 0:00:09.8]} 1/2-1/2

[Event "*** Titled Tuesday Blitz"]
[Site "Chess.com"]
[Date "2021.03.30"]
[Round "2"]
[White "sakkikuska"]
[Black "GM_dmitrij"]
[Result "1-0"]
[WhiteElo "2495"]
[BlackElo "2998"]
[TimeControl "180+1"]
[EndTime "10:18:21 PDT"]
[Termination "sakkikuska won by resignation"]

1. e4 {[%clk 0:02:59.9]} 1... c5 {[%clk 0:02:58]} 2. Nf3 {[%clk 0:03:00.1]} 2...
d6 {[%clk 0:02:55]} 3. d4 {[%clk 0:03:00.3]} 3... cxd4 {[%clk 0:02:55.9]} 4.
Nxd4 {[%clk 0:03:01.1]} 4... Nf6 {[%clk 0:02:50.7]} 5. f3 {[%clk 0:03:01.4]}
5... e5 {[%clk 0:02:48.9]} 6. Nb3 {[%clk 0:03:01.6]} 6... d5 {[%clk 0:02:45.6]}
7. exd5 {[%clk 0:02:48.9]} 7... Qxd5 {[%clk 0:02:44.8]} 8. Qxd5 {[%clk
0:02:44.3]} 8... Nxd5 {[%clk 0:02:45.7]} 9. Bd2 {[%clk 0:02:44.5]} 9... Nc6
{[%clk 0:02:43.9]} 10. Nc3 {[%clk 0:02:44.6]} 10... Be6 {[%clk 0:02:38.1]} 11.
O-O-O {[%clk 0:02:44.9]} 11... O-O-O {[%clk 0:02:37.8]} 12. Nxd5 {[%clk
0:02:42]} 12... Bxd5 {[%clk 0:02:38.7]} 13. Bc3 {[%clk 0:02:42.1]} 13... f6
{[%clk 0:02:25.4]} 14. Bd3 {[%clk 0:02:41.4]} 14... Be7 {[%clk 0:02:20.2]} 15.
Rhe1 {[%clk 0:02:40.1]} 15... Kc7 {[%clk 0:02:17.4]} 16. Be4 {[%clk 0:02:24.8]}
16... Bxe4 {[%clk 0:02:02]} 17. Rxe4 {[%clk 0:02:25.7]} 17... Rxd1+ {[%clk
0:01:57.1]} 18. Kxd1 {[%clk 0:02:26.6]} 18... Kd6 {[%clk 0:01:56.7]} 19. Na5
{[%clk 0:02:21.5]} 19... Nxa5 {[%clk 0:01:48.3]} 20. Bxa5 {[%clk 0:02:22.4]}
20... Ke6 {[%clk 0:01:38.3]} 21. c4 {[%clk 0:02:09.3]} 21... Rc8 {[%clk
0:01:24.2]} 22. b3 {[%clk 0:02:07.1]} 22... Bc5 {[%clk 0:01:07]} 23. Bc3 {[%clk
0:01:59.6]} 23... Bg1 {[%clk 0:01:06.9]} 24. h3 {[%clk 0:01:59.2]} 24... b5
{[%clk 0:01:03.7]} 25. Ke2 {[%clk 0:01:55]} 25... Bh2 {[%clk 0:00:58.9]} 26. Bd2
{[%clk 0:01:47.3]} 26... a6 {[%clk 0:00:42]} 27. g4 {[%clk 0:01:42]} 27... g6
{[%clk 0:00:39.2]} 28. cxb5 {[%clk 0:01:24]} 28... axb5 {[%clk 0:00:40.1]} 29.
Rb4 {[%clk 0:01:20.1]} 29... Rc5 {[%clk 0:00:23.9]} 30. a4 {[%clk 0:01:19.9]}
30... bxa4 {[%clk 0:00:24.8]} 31. bxa4 {[%clk 0:01:20.3]} 31... Rc2 {[%clk
0:00:18.8]} 32. Rb6+ {[%clk 0:01:14.5]} 32... Kf7 {[%clk 0:00:17.5]} 33. Kd3
{[%clk 0:01:13.7]} 33... Ra2 {[%clk 0:00:17.2]} 34. a5 {[%clk 0:01:12.3]} 34...
h5 {[%clk 0:00:16]} 35. a6 {[%clk 0:01:11.3]} 35... Bg1 {[%clk 0:00:15.2]} 36.
Rc6 {[%clk 0:01:09.5]} 36... Ra3+ {[%clk 0:00:13.1]} 37. Ke2 {[%clk 0:01:09.7]}
37... h4 {[%clk 0:00:13]} 38. Rc7+ {[%clk 0:01:07.5]} 38... Ke6 {[%clk
0:00:12.8]} 39. Rc6+ {[%clk 0:01:07.6]} 39... Kf7 {[%clk 0:00:13.3]} 40. Rc7+
{[%clk 0:01:07.6]} 40... Ke8 {[%clk 0:00:13.6]} 41. Rc6 {[%clk 0:01:06.6]} 41...
f5 {[%clk 0:00:06.1]} 42. gxf5 {[%clk 0:01:01.3]} 42... gxf5 {[%clk 0:00:06.1]}
43. Re6+ {[%clk 0:01:01.2]} 43... Kf7 {[%clk 0:00:05.8]} 44. Rxe5 {[%clk
0:00:59]} 44... Rxa6 {[%clk 0:00:06.3]} 45. Rxf5+ {[%clk 0:00:58.8]} 45... Ke6
{[%clk 0:00:07.2]} 46. Rf4 {[%clk 0:00:58.2]} 46... Ra2 {[%clk 0:00:06.3]} 47.
Rxh4 {[%clk 0:00:57]} 47... Bc5 {[%clk 0:00:05.4]} 48. Re4+ {[%clk 0:00:56.9]}
48... Kf5 {[%clk 0:00:04.3]} 49. Rc4 {[%clk 0:00:54.8]} 49... Be7 {[%clk
0:00:03.1]} 50. Kd3 {[%clk 0:00:50.6]} 50... Ra3+ {[%clk 0:00:03.4]} 51. Bc3
{[%clk 0:00:50.1]} 51... Ra2 {[%clk 0:00:03.9]} 52. h4 {[%clk 0:00:45.5]} 52...
Rh2 {[%clk 0:00:03.4]} 53. Ra4 {[%clk 0:00:44.8]} 53... Bxh4 {[%clk 0:00:02.7]}
54. Ra5+ {[%clk 0:00:44.1]} 54... Ke6 {[%clk 0:00:02.6]} 55. Ra6+ {[%clk
0:00:44.3]} 55... Kf7 {[%clk 0:00:02.3]} 56. Ra7+ {[%clk 0:00:44.3]} 56... Kg6
{[%clk 0:00:02.5]} 57. Ra6+ {[%clk 0:00:44.4]} 57... Kf5 {[%clk 0:00:02.8]} 58.
Ra8 {[%clk 0:00:41.4]} 58... Rf2 {[%clk 0:00:02.1]} 59. Rf8+ {[%clk 0:00:37.4]}
59... Ke6 {[%clk 0:00:02.3]} 60. Bd2 {[%clk 0:00:35.4]} 60... Rf1 {[%clk
0:00:01.1]} 61. Ke2 {[%clk 0:00:34.9]} 61... Bg3 {[%clk 0:00:01.4]} 62. Kxf1
{[%clk 0:00:34.7]} 1-0

[Event "*** Titled Tuesday Blitz"]
[Site "Chess.com"]
[Date "2021.03.30"]
[Round "2"]
[White "SameerMujumdar"]
[Black "Treacherous_horse64"]
[Result "1-0"]
[WhiteElo "2294"]
[BlackElo "2459"]
[TimeControl "180+1"]
[EndTime "10:18:27 PDT"]
[Termination "SameerMujumdar won by checkmate"]

1. e4 {[%clk 0:02:58.4]} 1... d6 {[%clk 0:02:57.5]} 2. Nc3 {[%clk 0:02:58.1]}
2... Nf6 {[%clk 0:02:57.3]} 3. Nf3 {[%clk 0:02:57.5]} 3... e5 {[%clk 0:02:56.2]}
4. Bc4 {[%clk 0:02:57.2]} 4... Be7 {[%clk 0:02:55.5]} 5. d4 {[%clk 0:02:56.3]}
5... Nbd7 {[%clk 0:02:54.3]} 6. O-O {[%clk 0:02:54.8]} 6... O-O {[%clk
0:02:53.8]} 7. h3 {[%clk 0:02:54.4]} 7... c6 {[%clk 0:02:51.2]} 8. a4 {[%clk
0:02:53.2]} 8... Qc7 {[%clk 0:02:50.6]} 9. Bg5 {[%clk 0:02:50.1]} 9... h6 {[%clk
0:02:49.9]} 10. Bh4 {[%clk 0:02:43.4]} 10... b6 {[%clk 0:02:45.2]} 11. Qd2
{[%clk 0:02:28.8]} 11... a6 {[%clk 0:02:41.2]} 12. Rfd1 {[%clk 0:02:21.6]} 12...
b5 {[%clk 0:02:40.9]} 13. axb5 {[%clk 0:02:21]} 13... cxb5 {[%clk 0:02:40.9]}
14. Bxb5 {[%clk 0:02:17.8]} 14... Bb7 {[%clk 0:02:40.6]} 15. Bxd7 {[%clk
0:02:16.3]} 15... Qxd7 {[%clk 0:02:39.2]} 16. dxe5 {[%clk 0:02:16.2]} 16... Nxe4
{[%clk 0:02:37.1]} 17. Nxe4 {[%clk 0:02:13.7]} 17... Bxe4 {[%clk 0:02:38]} 18.
Bxe7 {[%clk 0:02:11.5]} 18... Qxe7 {[%clk 0:02:31.5]} 19. exd6 {[%clk
0:02:10.3]} 19... Qb7 {[%clk 0:02:30.4]} 20. Ne1 {[%clk 0:02:00.5]} 20... Qxb2
{[%clk 0:02:28.2]} 21. c4 {[%clk 0:01:54.9]} 21... Qb6 {[%clk 0:02:24.8]} 22.
Qd4 {[%clk 0:01:53.1]} 22... Qc6 {[%clk 0:02:24.6]} 23. c5 {[%clk 0:01:49.5]}
23... Bf5 {[%clk 0:02:24.5]} 24. Nf3 {[%clk 0:01:42.7]} 24... Rfc8 {[%clk
0:02:21.9]} 25. Ra5 {[%clk 0:01:42.5]} 25... Qd7 {[%clk 0:02:16.8]} 26. Ne5
{[%clk 0:01:41.8]} 26... Qe6 {[%clk 0:02:16.7]} 27. d7 {[%clk 0:01:40.6]} 27...
Rd8 {[%clk 0:02:15.9]} 28. c6 {[%clk 0:01:41.2]} 28... f6 {[%clk 0:01:56]} 29.
c7 {[%clk 0:01:33.3]} 29... fxe5 {[%clk 0:01:55.9]} 30. cxd8=Q+ {[%clk
0:01:15.4]} 30... Rxd8 {[%clk 0:01:56.8]} 31. Qxe5 {[%clk 0:01:11.3]} 31... Qxe5
{[%clk 0:01:52.2]} 32. Rxe5 {[%clk 0:01:10.7]} 32... Rxd7 {[%clk 0:01:52.7]} 33.
Rxd7 {[%clk 0:00:53.1]} 33... Bxd7 {[%clk 0:01:53.6]} 34. Ra5 {[%clk 0:00:53]}
34... Bb5 {[%clk 0:01:54.5]} 35. f3 {[%clk 0:00:52.4]} 35... Kh7 {[%clk
0:01:54.7]} 36. Kf2 {[%clk 0:00:51.4]} 36... g5 {[%clk 0:01:54.9]} 37. g4 {[%clk
0:00:51]} 37... Kg6 {[%clk 0:01:55.1]} 38. Ke3 {[%clk 0:00:48.4]} 38... Kf6
{[%clk 0:01:55.7]} 39. f4 {[%clk 0:00:41.4]} 39... Ke6 {[%clk 0:01:42.2]} 40.
Ra1 {[%clk 0:00:38.1]} 40... Kf6 {[%clk 0:01:41]} 41. Rc1 {[%clk 0:00:35.6]}
41... Ke6 {[%clk 0:01:40.8]} 42. Rc5 {[%clk 0:00:33.1]} 42... Bf1 {[%clk
0:01:37.8]} 43. fxg5 {[%clk 0:00:31.2]} 43... hxg5 {[%clk 0:01:38.7]} 44. Rxg5
{[%clk 0:00:31.5]} 44... Bxh3 {[%clk 0:01:38.8]} 45. Kf4 {[%clk 0:00:30.5]}
45... Bf1 {[%clk 0:01:37.4]} 46. Ra5 {[%clk 0:00:30.3]} 46... Kf6 {[%clk
0:01:37]} 47. g5+ {[%clk 0:00:31.2]} 47... Kg6 {[%clk 0:01:37.1]} 48. Rc5 {[%clk
0:00:31.5]} 48... Bb5 {[%clk 0:01:36.6]} 49. Rd5 {[%clk 0:00:31.9]} 49... Kf7
{[%clk 0:01:36.1]} 50. Rd6 {[%clk 0:00:32.7]} 50... Kg7 {[%clk 0:01:32.8]} 51.
Kf5 {[%clk 0:00:31.4]} 51... Bf1 {[%clk 0:01:29.2]} 52. g6 {[%clk 0:00:31]}
52... Kh6 {[%clk 0:01:26.6]} 53. Kf6 {[%clk 0:00:30]} 53... a5 {[%clk
0:01:23.6]} 54. Rd1 {[%clk 0:00:27.7]} 54... Bg2 {[%clk 0:01:20.9]} 55. Ra1
{[%clk 0:00:26.4]} 55... Be4 {[%clk 0:01:19.4]} 56. g7 {[%clk 0:00:23.2]} 56...
Kh7 {[%clk 0:01:18.4]} 57. Rxa5 {[%clk 0:00:24.1]} 57... Bf3 {[%clk 0:01:11.3]}
58. Rf5 {[%clk 0:00:21.7]} 58... Be2 {[%clk 0:01:07.7]} 59. Kf7 {[%clk
0:00:20.3]} 59... Bc4+ {[%clk 0:01:07.5]} 60. Kf8 {[%clk 0:00:20.7]} 60... Be6
{[%clk 0:00:56.7]} 61. Rf2 {[%clk 0:00:20]} 61... Bd5 {[%clk 0:00:48.1]} 62.
g8=Q+ {[%clk 0:00:15.8]} 62... Bxg8 {[%clk 0:00:47]} 63. Rh2+ {[%clk 0:00:16.5]}
63... Kg6 {[%clk 0:00:47.5]} 64. Kxg8 {[%clk 0:00:17.3]} 64... Kg5 {[%clk
0:00:48.4]} 65. Kg7 {[%clk 0:00:17.5]} 65... Kg4 {[%clk 0:00:49.3]} 66. Kg6
{[%clk 0:00:17.9]} 66... Kg3 {[%clk 0:00:50.2]} 67. Rh5 {[%clk 0:00:17.8]} 67...
Kf4 {[%clk 0:00:50.6]} 68. Rg5 {[%clk 0:00:17.7]} 68... Ke4 {[%clk 0:00:49.7]}
69. Rf5 {[%clk 0:00:17.8]} 69... Ke3 {[%clk 0:00:49.5]} 70. Kf6 {[%clk
0:00:18.7]} 70... Ke4 {[%clk 0:00:50.4]} 71. Ke6 {[%clk 0:00:19.3]} 71... Kd4
{[%clk 0:00:51.3]} 72. Re5 {[%clk 0:00:19.5]} 72... Kd3 {[%clk 0:00:51.6]} 73.
Kd5 {[%clk 0:00:19.3]} 73... Kc3 {[%clk 0:00:51.6]} 74. Kc5 {[%clk 0:00:18.4]}
74... Kd2 {[%clk 0:00:52.4]} 75. Kd4 {[%clk 0:00:17.8]} 75... Kc2 {[%clk
0:00:52]} 76. Kc4 {[%clk 0:00:16.6]} 76... Kd1 {[%clk 0:00:52.9]} 77. Kc3 {[%clk
0:00:14.2]} 77... Kc1 {[%clk 0:00:52.2]} 78. Re1# {[%clk 0:00:14.9]} 1-0